bitfinex-derivatives/quotes_ETHF0:USTF0_20250505
["timestamp","ask_amount","ask_price","bid_price","bid_amount"]
[1746457533753,1.10716,1806.5,1806.4,2.09499]
[1746457533943,1.10716,1806.5,1806.4,52.10829644]
[1746457534148,1.10716,1806.5,1806.4,51.00110644]
[1746457534353,1.10722,1806.4,1806.3,7.97806]
[1746457534555,1.10722,1806.4,1806.3,6.8708]
[1746457534855,1.10735,1806.2,1806.1,42.90354]
[1746457535056,1.10735,1806.2,1806.1,90.35184644]
[1746457535658,1.10735,1806.2,1806.1,40.8]
[1746457535862,2.11335,1806.2,1806.1,41.90741]
[1746457536252,2.11335,1806.2,1806.1,40.8]
[1746457536756,2.11335,1806.2,1806.1,41.90741]
[1746457537354,2.11335,1806.2,1806.1,40.8]
[1746457537658,2.11335,1806.2,1806.1,41.90741]
[1746457538354,2.11335,1806.2,1806.1,43.56611]
[1746457538564,1.006,1806.2,1806.1,43.56611]
[1746457538746,2.11335,1806.2,1806.1,43.56611]
[1746457539957,1.006,1806.2,1806.1,43.56611]
[1746457540158,1.006,1806.2,1806.1,92.01061644]
[1746457540358,2.11335,1806.2,1806.1,92.01061644]
[1746457540854,2.11335,1806.2,1806.1,90.35191644]
[1746457541057,2.11335,1806.2,1806.1,48.71696277]
[1746457541461,2.11335,1806.2,1806.1,40.8]
[1746457541662,2.11335,1806.2,1806.1,41.90741]
[1746457541863,2.11335,1806.2,1806.1,48.71696277]
[1746457542258,2.11335,1806.2,1806.1,50.42866277]
[1746457542970,2.10694,1806.3,1806.2,1.10735]
[1746457543264,0.9996,1806.3,1806.2,51.24445644]
[1746457543458,13.421,1806.7,1806.6,1.1071]
[1746457543459,14.07289,1806.7,1806.6,1.1071]
[1746457543662,6.31621257,1806.7,1806.6,49.55160644]
[1746457543962,5.9009,1806.7,1806.6,49.55160644]
[1746457544163,5.9009,1806.7,1806.6,51.24420644]
[1746457544763,2.6931,1806.7,1806.6,51.24420644]
[1746457544968,3.80014,1806.7,1806.6,51.24420644]
[1746457545962,1.1071,1806.6,1806.5,1.0007]
[1746457546268,2.7823,1806.6,1806.5,50.55231644]
[1746457546467,1.6752,1806.6,1806.5,50.55231644]
[1746457546763,1.10728,1806.4,1806.2,1.063]
[1746457546973,1.10728,1806.4,1806.3,1.10727]
[1746457547166,1.10728,1806.4,1806.3,49.55177644]
[1746457547464,1.10728,1806.4,1806.3,51.25317644]
[1746457547668,2.75489,1806.5,1806.4,1.10722]
[1746457547971,1.6477,1806.5,1806.4,51.25312644]
[1746457548363,3.77269,1806.7,1806.6,1.1071]
[1746457548568,4.18781603,1806.7,1806.6,7.91665277]
[1746457548773,4.18781603,1806.7,1806.6,1.1071]
[1746457548967,4.18780055,1806.7,1806.6,1.1071]
[1746457549461,4.18780592,1806.7,1806.6,1.1071]
[1746457549662,4.18780592,1806.7,1806.6,2.8008]
[1746457549868,3.77269,1806.7,1806.6,2.8008]
[1746457550070,4.18788846,1806.7,1806.6,2.8008]
[1746457550371,4.18791327,1806.7,1806.6,2.8008]
[1746457550569,4.1880491,1806.7,1806.6,2.8008]
[1746457550770,4.18804847,1806.7,1806.6,2.8008]
[1746457551070,4.18806325,1806.7,1806.6,2.8008]
[1746457551271,4.18806597,1806.7,1806.6,2.8008]
[1746457551763,4.18825938,1806.7,1806.6,2.8008]
[1746457552268,4.18820438,1806.7,1806.6,2.8008]
[1746457552468,4.18837162,1806.7,1806.6,2.8008]
[1746457552975,3.77269,1806.7,1806.6,3.8963]
[1746457553771,3.77269,1806.7,1806.6,10.70585277]
[1746457554370,2.75479,1806.7,1806.6,52.34080644]
[1746457555169,1.10701,1806.8,1806.7,1.10704]
[1746457555370,1.10701,1806.8,1806.7,2.69764]
[1746457555569,7.97767,1807.0,1806.7,50.03510644]
[1746457555873,1.10686,1807.0,1806.9,49.55137644]
[1746457556063,6.48916,1807.0,1806.9,48.44450644]
[1746457556263,1.10692,1806.9,1806.8,3.69802]
[1746457556464,2.75722,1806.9,1806.8,3.69802]
[1746457556666,2.75722,1806.9,1806.8,52.14252644]
[1746457558670,1.1069,1807.0,1806.9,1.10692]
[1746457558973,3.83434,1807.1,1807.0,49.55136644]
[1746457559175,3.83434,1807.1,1807.0,42.74181367]
[1746457559475,1.10686,1807.0,1806.9,2.72157]
[1746457560070,1.10704,1806.8,1806.7,1.10701]
[1746457560266,1.10704,1806.7,1806.6,1.0955]
[1746457560468,4.81424,1806.7,1806.6,1.1071]
[1746457562973,1.10704,1806.7,1806.6,1.1071]
[1746457563173,2.66904,1806.7,1806.6,2.7293]
[1746457565474,2.66904,1806.7,1806.6,1.1071]
[1746457567475,3.37506809,1806.7,1806.6,1.1071]
[1746457568078,3.37506809,1806.7,1806.5,5.2754]
[1746457568274,1.1071,1806.6,1806.5,54.82701644]
[1746457568475,2.7779,1806.6,1806.5,54.82701644]
[1746457569973,2.013,1806.8,1806.7,1.10704]
[1746457570277,3.732,1806.8,1806.7,49.55154644]
[1746457570476,3.732,1806.8,1806.7,54.55154644]
[1746457570773,3.732,1806.8,1806.7,56.12974644]
[1746457571167,7.35014862,1806.9,1806.8,1.10698]
[1746457571369,7.35014862,1806.9,1806.8,58.96478644]
[1746457572277,7.35014862,1806.9,1806.8,60.34838644]
[1746457573183,7.35014862,1806.9,1806.8,64.08038644]
[1746457573567,7.35014862,1806.9,1806.8,69.08038644]
[1746457573975,4.31448,1807.3,1807.2,1.10673]
[1746457574173,4.31448,1807.3,1807.2,49.55123644]
[1746457574471,5.98908,1807.3,1807.2,49.55123644]
[1746457574664,5.98908,1807.3,1807.2,48.44450644]
[1746457574867,1.10692,1806.9,1806.8,1.3836]
[1746457575069,8.4619011,1806.9,1806.8,1.3836]
[1746457575269,13.4619011,1806.9,1806.8,0.0626]
[1746457575473,1.10735,1806.2,1806.1,7.38305643]
[1746457575668,1.10735,1806.2,1806.0,11.08781115]
[1746457575669,1.10741,1806.1,1806.0,3.11773758]
[1746457575875,7.8346911,1806.1,1806.0,0.08481758]
[1746457576076,16.56692427,1806.1,1806.0,0.08481758]
[1746457576273,7.90792427,1806.1,1806.0,7.58e-06]
[1746457576478,12.90792427,1806.1,1806.0,7.58e-06]
[1746457577079,1.10747,1806.0,1805.4,64.57949309]
[1746457577273,6.30068427,1806.0,1805.9,13.51582369]
[1746457577479,2.76914,1805.7,1805.0,3.2078]
[1746457577674,2.76914,1805.7,1804.6,3.21879462]
[1746457577675,1.10799,1805.2,1804.9,1.7237]
[1746457577978,4.31567,1805.4,1805.2,1.10793]
[1746457578178,3.09335957,1805.3,1805.1,6.80955277]
[1746457578378,3.62320571,1805.2,1805.0,41.90804]
[1746457578673,1.57,1805.1,1805.0,41.90804]
[1746457579182,1.57,1805.1,1805.0,89.03196644]
[1746457579383,2.67802,1805.1,1805.0,40.8]
[1746457579583,2.67802,1805.1,1804.9,1.10813]
[1746457579773,1.57,1805.1,1805.0,50.33172644]
[1746457579974,4.2106,1805.6,1805.1,2.77006]
[1746457580277,5.8702,1805.6,1805.5,7.91733277]
[1746457580477,4.8674,1805.6,1805.5,48.23170644]
[1746457580672,1.6596,1805.6,1805.5,48.23170644]
[1746457580878,0.1,1805.7,1805.6,1.10772]
[1746457581078,0.1,1805.7,1805.6,49.87864644]
[1746457581379,0.9735,1806.1,1806.0,1.10747]
[1746457581585,2.6331,1806.1,1806.0,48.23139644]
[1746457581775,7.6331,1806.1,1805.7,1.647]
[1746457582082,4.31544,1805.8,1805.7,1.10765]
[1746457582275,2.6331,1806.1,1805.5,49.2306]
[1746457582276,3.2078,1806.0,1805.9,1.10753]
[1746457582481,4.8674,1806.0,1805.8,48.23147644]
[1746457582686,4.8674,1806.0,1805.8,6.80955277]
[1746457582880,4.8674,1806.0,1805.7,1.10765]
[1746457583093,4.31542,1805.8,1805.6,2.75467]
[1746457583283,1.6014,1805.7,1805.6,43.06904367]
[1746457583480,1.6014,1805.7,1805.6,41.96137367]
[1746457583781,2.70905,1805.7,1805.6,6.80955277]
[1746457584176,1.10772,1805.6,1805.5,40.8]
[1746457584381,5.91692,1805.6,1805.5,40.8]
[1746457584775,5.91692,1805.6,1805.5,41.90778]
[1746457584977,3.732,1805.7,1805.6,1.10772]
[1746457585179,4.31538,1805.9,1805.7,1.10765]
[1746457585180,1.6014,1805.8,1805.7,1.10765]
[1746457585380,1.6014,1805.8,1805.7,43.06892367]
[1746457585588,14.77178597,1806.1,1806.0,1.10747]
[1746457585787,12.25528597,1806.1,1806.0,48.23139644]
[1746457585987,10.59048597,1806.1,1806.0,48.23139644]
[1746457586488,4.8726,1806.1,1805.9,2.78193]
[1746457586685,5.98005,1806.1,1806.0,1.10747]
[1746457586883,4.8726,1806.1,1806.0,1.10747]
[1746457587280,2.76868,1806.0,1805.6,40.8]
[1746457587482,1.10765,1805.7,1805.6,41.9077]
[1746457587783,1.10784,1805.4,1805.3,2.09285]
[1746457587990,1.10784,1805.4,1805.1,6.43094]
[1746457587991,1.1079,1805.3,1805.2,2.78232]
[1746457588176,2.7727,1805.3,1805.2,48.71747277]
[1746457588379,1.6648,1805.3,1805.2,41.90792]
[1746457588988,1.10796,1805.2,1805.1,3.661]
[1746457589285,1.6648,1805.3,1805.1,3.661]
[1746457589286,6.50472,1805.3,1805.2,1.10796]
[1746457589488,1.10796,1805.2,1805.1,7.91752277]
[1746457589788,2.69966,1805.2,1805.1,7.91757277]
[1746457590289,1.5917,1805.2,1805.1,7.91757277]
[1746457590484,2.69966,1805.2,1805.1,7.91757277]
[1746457590884,1.5917,1805.2,1805.1,7.91757277]
[1746457591084,2.69966,1805.2,1805.1,7.91757277]
[1746457591291,3.2078,1805.3,1805.2,1.10796]
[1746457591489,3.2078,1805.3,1805.2,48.23188644]
[1746457591693,2.69955,1805.4,1805.3,1.1079]
[1746457591887,4.7995,1805.4,1805.2,6.80955277]
[1746457592084,4.7995,1805.4,1805.3,1.1079]
[1746457592488,5.90734,1805.4,1805.3,1.1079]
[1746457592892,1.1079,1805.3,1805.2,2.78001]
[1746457593098,1.5697,1805.3,1805.2,43.09438367]
[1746457593393,1.5697,1805.3,1805.2,49.90393644]
[1746457594195,2.6776,1805.3,1805.2,49.90393644]
[1746457594396,2.6776,1805.3,1805.2,1.10791]
[1746457595196,6.4096,1805.3,1805.2,1.10791]
[1746457595695,5.3017,1805.3,1805.2,1.10791]
[1746457595892,5.3017,1805.3,1805.2,48.23183644]
[1746457596390,1.5697,1805.3,1805.2,48.23183644]
[1746457596798,2.6776,1805.3,1805.2,48.23183644]
[1746457597093,2.6776,1805.3,1805.2,6.69170656]
[1746457597296,1.10802,1805.1,1805.0,43.58014]
[1746457597491,1.10802,1805.1,1805.0,7.79974656]
[1746457597995,1.10802,1805.1,1805.0,6.69170656]
[1746457598297,4.84002,1805.1,1805.0,7.79978656]
[1746457598995,1.10827,1804.8,1804.7,1.10824]
[1746457599195,2.77022,1805.0,1804.7,1.10824]
[1746457599196,3.2078,1804.9,1804.8,1.10821]
[1746457599496,4.7857,1804.9,1804.8,1.10821]
[1746457599992,1.5779,1804.9,1804.8,1.10821]
[1746457600298,5.3099,1804.9,1804.8,1.10821]
[1746457600500,5.3099,1804.9,1804.8,48.11429023]
[1746457600700,3.732,1804.9,1804.8,48.11429023]
[1746457600900,3.732,1804.9,1804.8,54.98209023]
[1746457601101,3.732,1804.9,1804.8,59.98209023]
[1746457601303,5.9244,1805.3,1805.2,1.10796]
[1746457601600,4.8165,1805.3,1805.2,88.91404023]
[1746457602502,5.9244,1805.3,1805.2,90.53974023]
[1746457603001,4.8165,1805.3,1805.2,90.53974023]
[1746457603296,2.7166,1805.3,1805.2,88.91404023]
[1746457603794,1.6087,1805.3,1805.2,90.53974023]
[1746457603994,14.46363387,1805.5,1805.4,1.10784]
[1746457604197,15.08173387,1805.5,1805.4,1.10784]
[1746457604396,13.97390387,1805.5,1805.4,1.10784]
[1746457604597,11.42168387,1805.5,1805.4,1.10784]
[1746457604896,10.31390387,1805.5,1805.4,1.10784]
[1746457605093,5.51200387,1805.5,1805.4,48.11392023]
[1746457605297,5.51200387,1805.5,1805.4,56.32172023]
[1746457605498,7.34173333,1805.6,1805.5,1.10778]
[1746457605698,5.48347938,1806.0,1805.9,1.10753]
[1746457605898,9.79874938,1806.0,1805.9,6.69170656]
[1746457606099,1.10753,1805.9,1805.8,43.4814]
[1746457606308,1.5941,1805.9,1805.8,44.58899]
[1746457606498,9.21547938,1806.0,1805.9,1.10753]
[1746457606806,9.21547938,1806.0,1805.9,49.78421023]
[1746457607102,6.59094938,1806.0,1805.9,2.77813]
[1746457607404,6.59094938,1806.0,1805.5,1.039]
[1746457607405,1.10778,1805.5,1805.4,3.2078]
[1746457607597,3.2078,1805.6,1805.4,1.1078]
[1746457607906,1.6729,1805.5,1805.2,43.49802]
[1746457608094,1.6729,1805.5,1805.3,1.1079]
[1746457608299,6.9398,1805.6,1805.5,1.10778]
[1746457608602,6.9398,1805.6,1805.5,48.11386023]
[1746457608804,6.9398,1805.6,1805.5,50.69096023]
[1746457609304,3.2078,1805.6,1805.5,50.69096023]
[1746457609909,1.6729,1805.9,1805.8,1.10759]
[1746457610204,8.69127938,1806.0,1805.9,1.10753]
[1746457610403,10.37917938,1806.0,1805.9,49.81811023]
[1746457610602,4.8957,1806.0,1805.9,49.81811023]
[1746457611007,6.00317,1806.0,1805.9,49.81811023]
[1746457611210,6.00317,1806.0,1805.9,47.00608023]
[1746457611504,1.10759,1805.8,1805.7,1.10761]
[1746457611700,1.10765,1805.7,1805.6,47.00608023]
[1746457611999,2.79555,1805.7,1805.6,47.00608023]
[1746457612199,1.10772,1805.6,1805.5,0.987]
[1746457612399,1.6879,1805.6,1805.5,1.10778]
[1746457613096,1.10778,1805.5,1805.4,2.81231]
[1746457613412,1.10778,1805.5,1805.4,43.12668367]
[1746457613596,2.83468,1805.5,1805.4,43.12668367]
[1746457613800,2.83468,1805.5,1805.4,49.81839023]
[1746457614808,1.7269,1805.5,1805.4,49.81839023]
[1746457615410,3.2078,1805.7,1805.6,1.10772]
[1746457615710,9.758,1805.9,1805.8,1.10759]
[1746457616007,6.0422,1806.0,1805.9,1.10753]
[1746457616208,6.0422,1806.0,1805.9,49.80071023]
[1746457616404,6.0422,1806.0,1805.9,2.79463]
[1746457616607,4.9347,1806.0,1805.9,49.80071023]
[1746457616805,1.10742,1806.1,1806.0,1.10747]
[1746457617000,1.10742,1806.1,1806.0,49.71805023]
[1746457617203,10.12991333,1806.2,1806.1,1.10741]
[1746457617408,10.12991333,1806.2,1806.1,49.71799023]
[1746457617607,10.12991333,1806.2,1806.1,1.10741]
[1746457618212,11.96534667,1806.2,1806.1,1.10741]
[1746457618511,1.10747,1806.0,1805.9,0.9749]
[1746457618805,2.76898,1805.9,1805.5,1.10772]
[1746457619012,1.10776,1805.6,1805.5,1.10772]
[1746457619207,1.10776,1805.6,1805.5,2.71222]
[1746457619505,5.99624,1805.8,1805.7,1.10765]
[1746457619710,2.78844,1805.8,1805.7,48.11373023]
[1746457619915,2.78844,1805.8,1805.7,1.10765]
[1746457620407,2.78839,1805.8,1805.7,48.11373023]
[1746457621009,5.99619,1805.8,1805.7,48.11373023]
[1746457621207,1.10772,1805.7,1805.6,1.10769]
[1746457621508,2.69012,1805.7,1805.6,48.11377023]
[1746457621704,2.69012,1805.7,1805.6,1.10769]
[1746457622103,1.10772,1805.6,1805.5,2.71223]
[1746457622411,1.5824,1805.6,1805.5,48.11386023]
[1746457622613,2.69012,1805.6,1805.5,49.70406023]
[1746457624312,1.5824,1805.6,1805.5,49.70406023]
[1746457624508,4.31544,1805.8,1805.7,1.10765]
[1746457624705,6.04364,1805.8,1805.7,1.10765]
[1746457624907,15.22080667,1805.8,1805.7,1.10765]
[1746457625514,1.10772,1805.7,1805.6,1.10768]
[1746457625702,2.78442,1805.7,1805.6,47.00608023]
[1746457625908,1.10775,1805.6,1805.5,1.10772]
[1746457626211,2.78445,1805.6,1805.5,1.10772]
[1746457626407,2.78445,1805.6,1805.5,48.11380023]
[1746457626715,4.8397,1805.7,1805.6,1.10772]
[1746457626913,4.83965,1805.7,1805.6,49.76020023]
[1746457627114,1.10765,1805.7,1805.6,49.76020023]
[1746457627411,1.1079,1805.3,1805.0,2.77021]
[1746457627613,1.108,1805.2,1805.1,1.10799]
[1746457627913,1.10794,1805.3,1805.2,48.11401023]
[1746457628106,2.78464,1805.3,1805.2,48.11401023]
[1746457628309,1.10802,1805.1,1805.0,1.0344]
[1746457628507,11.47021,1805.2,1804.3,15.55308]
[1746457628716,1.10815,1804.9,1804.8,45.87459023]
[1746457628917,1.10815,1804.9,1804.8,39.18288367]
[1746457629121,1.7003,1804.9,1804.5,4.49068]
[1746457629415,5.4323,1804.9,1804.8,46.98280023]
[1746457629616,3.732,1804.9,1804.8,46.98280023]
[1746457630015,4.84015,1804.9,1804.8,46.98280023]
[1746457630211,3.2078,1805.0,1804.9,1.10815]
[1746457630409,3.2078,1805.0,1804.9,48.70244023]
[1746457630610,4.80592,1805.3,1805.2,1.10796]
[1746457630910,2.8082,1805.3,1805.2,45.87459023]
[1746457631219,1.108,1805.2,1805.1,1.10799]
[1746457631517,1.7003,1805.2,1805.0,1.7197]
[1746457631716,2.80831,1805.2,1805.1,46.98261023]
[1746457632017,2.80831,1805.2,1805.1,45.87459023]
[1746457632416,2.80831,1805.2,1805.1,46.98261023]
[1746457632812,2.80831,1805.2,1805.1,45.87459023]
[1746457633309,6.01611,1805.2,1805.1,45.87459023]
[1746457633614,1.10802,1805.1,1805.0,1.7197]
[1746457633820,1.10808,1805.0,1804.9,1.1081]
[1746457634016,1.10808,1805.0,1804.9,1.6138]
[1746457634210,4.31588,1805.0,1804.9,39.18288367]
[1746457634416,1.10827,1804.7,1804.6,41.90833]
[1746457634821,1.10827,1804.7,1804.6,89.41212023]
[1746457635318,1.10827,1804.7,1804.6,88.30379023]
[1746457635622,7.64224,1804.8,1804.4,1.10842]
[1746457635820,2.77228,1804.6,1804.5,1.10839]
[1746457636216,1.10839,1804.5,1804.4,41.90842]
[1746457636414,4.8717,1804.6,1804.5,46.98298023]
[1746457636615,2.11642,1804.7,1804.6,1.10833]
[1746457636817,5.97991,1804.8,1804.6,47.50379023]
[1746457637020,1.6639,1804.8,1804.7,46.98286023]
[1746457637220,4.80619,1804.9,1804.8,1.10821]
[1746457637421,4.80619,1804.9,1804.8,6.69170656]
[1746457637616,4.80619,1804.9,1804.5,1.0284]
[1746457637617,8.08036,1804.9,1804.5,1.0284]
[1746457637818,5.92791,1804.8,1804.7,45.87459023]
[1746457638212,1.10827,1804.7,1804.6,1.10832]
[1746457638422,2.72017,1804.7,1804.6,2.69822]
[1746457638620,2.72017,1804.7,1804.6,47.46449023]
[1746457638922,2.72017,1804.7,1804.6,45.87459023]
[1746457639119,7.11303445,1804.7,1804.6,45.87459023]
[1746457639921,4.39286445,1804.7,1804.6,46.98292023]
[1746457640110,4.39286445,1804.7,1804.6,48.57282023]
[1746457641418,4.39286445,1804.7,1804.6,56.78062023]
[1746457642622,1.10827,1804.7,1804.6,41.88111367]
[1746457642829,1.10833,1804.6,1804.5,4.7604]
[1746457643020,1.10833,1804.6,1804.5,11.45210656]
[1746457643220,1.10833,1804.6,1804.5,46.90299023]
[1746457643420,2.77123,1804.6,1804.5,48.01138023]
[1746457643725,4.8403,1804.7,1804.6,1.10833]
[1746457643920,4.8403,1804.7,1804.6,47.44099023]
[1746457644115,1.10833,1804.6,1804.5,2.13673]
[1746457644327,2.77263,1804.6,1804.5,8.82843656]
[1746457644516,2.77263,1804.6,1804.5,48.01132023]
[1746457644723,2.77263,1804.6,1804.5,48.01138023]
[1746457645428,1.10827,1804.7,1804.6,1.10833]
[1746457645621,6.89422476,1804.8,1804.7,7.79997656]
[1746457645819,6.89422476,1804.8,1804.7,46.98286023]
[1746457646015,6.89422476,1804.8,1804.7,49.53126023]
[1746457646415,8.00243476,1804.8,1804.7,48.42299023]
[1746457646620,8.00243476,1804.8,1804.7,49.53126023]
[1746457646928,8.00243476,1804.8,1804.7,48.42299023]
[1746457647230,1.10833,1804.7,1804.6,1.10831]
[1746457647528,2.68563,1804.7,1804.6,46.98290023]
[1746457647733,1.10833,1804.6,1804.5,2.7385]
[1746457648027,5.89343,1804.6,1804.5,1.0284]
[1746457648616,1.10839,1804.5,1804.4,40.8]
[1746457648928,2.68569,1804.5,1804.4,41.90845]
[1746457649425,2.68569,1804.5,1804.4,40.8]
[1746457650129,2.68569,1804.5,1804.4,41.90845]
[1746457650329,6.41769,1804.5,1804.4,40.8]
[1746457650717,7.50499,1804.5,1804.4,40.8]
[1746457650921,7.50499,1804.5,1804.4,41.90845]
[1746457651221,4.31615,1804.6,1804.5,1.10839]
[1746457651423,1.5682,1804.7,1804.5,47.43439023]
[1746457651729,14.27964952,1804.8,1804.7,7.79997656]
[1746457651730,9.17716667,1804.8,1804.7,7.79997656]
[1746457652026,9.17716667,1804.8,1804.7,46.98286023]
[1746457652226,9.17716667,1804.8,1804.7,48.54266023]
[1746457652528,10.28537667,1804.8,1804.7,48.54266023]
[1746457653529,9.17716667,1804.8,1804.7,48.54266023]
[1746457653929,10.28537667,1804.8,1804.7,48.54266023]
[1746457654927,9.17716667,1804.8,1804.7,48.54266023]
[1746457655231,1.10821,1804.8,1804.7,48.54266023]
[1746457655822,2.67639,1804.9,1804.8,1.10821]
[1746457656024,2.67639,1804.9,1804.8,47.57369023]
[1746457656330,1.10827,1804.7,1804.6,3.34439]
[1746457656531,1.7244,1804.8,1804.7,1.10827]
[1746457656731,2.83261,1804.8,1804.7,2.80737]
[1746457656920,2.83261,1804.8,1804.7,48.68196023]
[1746457657123,1.10818,1804.9,1804.8,1.10821]
[1746457657320,1.10818,1804.9,1804.8,48.68190023]
[1746457658730,4.78682824,1804.9,1804.8,48.68190023]
[1746457659133,3.67864824,1804.9,1804.8,48.68190023]
[1746457660134,3.67864824,1804.9,1804.8,52.41390023]
[1746457661532,3.67864824,1804.9,1804.8,56.17490023]
[1746457662629,7.35729649,1805.1,1805.0,1.10808]
[1746457662831,1.36995136,1805.2,1805.1,1.10802]
[1746457663034,7.35729649,1805.5,1805.4,1.10784]
[1746457663235,7.35729649,1805.5,1805.4,50.19023023]
[1746457663435,7.35729649,1805.5,1805.4,94.75123023]
[1746457664126,7.35729649,1805.5,1805.4,98.48323023]
[1746457666330,5.92518649,1805.5,1805.4,103.48323023]
[1746457666529,2.34702649,1805.5,1805.4,103.48323023]
[1746457666835,6.49e-06,1805.5,1805.4,103.48323023]
[1746457667034,0.7064037,1805.8,1805.7,1.10765]
[1746457667337,0.7064037,1805.8,1805.7,50.74224023]
[1746457667637,0.7064037,1805.8,1805.7,91.54224023]
[1746457667837,0.7064037,1805.8,1805.7,93.18474023]
[1746457668137,0.7064037,1805.8,1805.7,96.91674023]
[1746457670731,1.8139937,1805.8,1805.7,90.22503367]
[1746457670932,0.7064037,1805.8,1805.7,90.22503367]
[1746457671135,0.7064037,1805.8,1805.7,86.49303367]
[1746457671640,2.2977037,1805.8,1805.7,86.49303367]
[1746457671839,0.7064037,1805.8,1805.7,93.18474023]
[1746457672140,3.83982,1806.0,1805.9,1.10753]
[1746457672542,1.10753,1805.9,1805.8,2.72614]
[1746457672734,2.69883,1805.9,1805.8,2.72614]
[1746457672935,3.2078,1806.1,1806.0,1.10747]
[1746457673143,3.2078,1806.1,1806.0,81.09035367]
[1746457673638,5.90651,1806.1,1806.0,82.70895367]
[1746457673842,4.7991,1806.1,1806.0,82.70895367]
[1746457674335,5.90651,1806.1,1806.0,82.70895367]
[1746457674541,4.7991,1806.1,1806.0,82.70895367]
[1746457674741,3.2078,1806.1,1806.0,82.70895367]
[1746457675441,4.8808,1806.1,1806.0,82.70895367]
[1746457675934,4.8808,1806.1,1806.0,89.40066023]
[1746457676634,1.673,1806.1,1806.0,89.40066023]
[1746457676829,2.78041,1806.1,1806.0,89.40066023]
[1746457677034,1.673,1806.1,1806.0,89.40066023]
[1746457680741,5.41508,1806.5,1806.4,1.10722]
[1746457680941,5.41508,1806.5,1806.4,40.29010367]
[1746457681143,5.41508,1806.5,1806.4,1.10722]
[1746457681342,7.11918,1806.5,1806.4,1.10722]
[1746457684352,1.0376,1806.6,1806.5,1.10716]
[1746457684651,1.0376,1806.6,1806.5,46.98175023]
[1746457684947,1.0376,1806.6,1806.5,48.64905023]
[1746457685246,1.7108,1806.7,1806.6,1.1071]
[1746457685545,1.7108,1806.7,1806.6,48.64899023]
[1746457686136,5.51794586,1807.0,1806.9,1.10692]
[1746457686343,8.30030586,1807.0,1806.9,46.98151023]
[1746457686749,11.50810586,1807.0,1806.9,46.98151023]
[1746457687044,7.19344586,1807.0,1806.9,46.98151023]
[1746457688153,8.30030586,1807.0,1806.9,46.98151023]
[1746457688351,7.19344586,1807.0,1806.9,46.98151023]
[1746457688554,7.19344586,1807.0,1806.9,48.70091023]
[1746457689051,2.78236,1807.0,1806.9,48.70091023]
[1746457689257,2.78236,1807.0,1806.9,46.98151023]
[1746457689753,1.6755,1807.0,1806.9,46.98151023]
[1746457690450,1.6755,1807.0,1806.9,48.68101023]
[1746457690852,2.78236,1807.0,1806.9,48.68101023]
[1746457691957,2.78236,1807.0,1806.9,45.87459023]
[1746457692150,2.76749,1806.8,1806.5,2.8168]
[1746457692348,1.10711,1806.7,1806.6,46.98165023]
[1746457692543,1.10711,1806.7,1806.6,7.79876656]
[1746457692749,1.10711,1806.7,1806.6,46.98165023]
[1746457693254,1.10711,1806.7,1806.6,45.87459023]
[1746457693450,2.70551,1806.7,1806.6,40.28998367]
[1746457693655,2.70551,1806.7,1806.6,39.18288367]
[1746457693857,1.1071,1806.6,1806.5,1.10713]
[1746457694058,1.5984,1806.6,1806.5,1.10713]
[1746457694258,1.5984,1806.6,1806.5,48.57742023]
[1746457694652,3.23891,1806.8,1806.7,1.10704]
[1746457694853,2.7077,1806.8,1806.7,46.98163023]
[1746457695048,1.10683,1807.1,1807.0,1.1068]
[1746457695351,1.10683,1807.1,1807.0,40.28968367]
[1746457695352,2.70523,1807.1,1807.0,40.28968367]
[1746457695552,2.70523,1807.1,1807.0,1.1068]
[1746457696254,6.43723,1807.1,1807.0,1.1068]
[1746457697253,1.10686,1807.0,1806.9,1.10688]
[1746457697462,5.93436,1807.0,1806.9,40.28976367]
[1746457697654,4.8275,1807.0,1806.9,40.28976367]
[1746457697856,3.2078,1807.0,1806.9,40.28976367]
[1746457698052,3.732,1807.1,1807.0,1.10686]
[1746457698358,1.1068,1807.1,1807.0,46.98145023]
[1746457698550,1.1068,1807.1,1807.0,1.10686]
[1746457698755,5.42388,1807.2,1807.1,1.1068]
[1746457700163,9.15588,1807.2,1807.1,1.1068]
[1746457700762,1.1068,1807.1,1806.8,3.81295]
[1746457700963,1.1068,1807.1,1807.0,45.87459023]
[1746457701166,4.8388,1807.1,1807.0,46.98145023]
[1746457701362,4.8388,1807.1,1807.0,1.10686]
[1746457702266,1.10686,1807.0,1806.9,2.81357]
[1746457702860,1.10686,1807.0,1806.9,48.68816023]
[1746457703364,8.04666,1807.0,1806.9,48.68816023]
[1746457704064,4.31466,1807.0,1806.9,48.68816023]
[1746457705062,8.04666,1807.0,1806.9,48.68816023]
[1746457705869,8.04666,1807.0,1806.9,1.10687]
[1746457706167,8.0467,1807.0,1806.9,1.10692]
[1746457706568,8.0467,1807.0,1806.9,46.98151023]
[1746457706955,8.0467,1807.0,1806.9,40.28980367]
[1746457707162,8.0467,1807.0,1806.9,1.10692]
[1746457707462,1.10692,1806.9,1806.8,1.10693]
[1746457707667,1.10704,1806.8,1806.7,1.107]
[1746457707965,2.34904,1806.8,1806.7,46.98159023]
[1746457708169,6.08104,1806.8,1806.7,46.98159023]
[1746457708773,6.08104,1806.8,1806.7,46.98163023]
[1746457708975,6.08104,1806.8,1806.7,1.10704]
[1746457710373,4.974,1806.8,1806.7,1.10704]
[1746457710572,4.974,1806.8,1806.7,2.81774]
[1746457710778,3.732,1806.8,1806.7,48.69233023]
[1746457711172,6.62476586,1807.1,1806.8,2.76732]
[1746457711383,5.51794586,1807.1,1807.0,46.98145023]
[1746457711677,6.62474586,1807.1,1807.0,46.98145023]
[1746457712177,5.51794586,1807.1,1807.0,48.60585023]
[1746457712479,6.62474586,1807.1,1807.0,49.85145023]
[1746457712677,6.62474586,1807.1,1807.0,3.97686]
[1746457712971,6.62474586,1807.1,1807.0,2.35246]
[1746457713170,4.8388,1807.1,1807.0,2.35246]
[1746457713674,6.5341,1807.1,1807.0,3.97686]